fUSD/lending_fUSD_20260207
["ID","MTS","AMOUNT","RATE_DAILY","PERIOD"]
[404746125,1770502240093,-500.0,0.00013698,2]
[404746126,1770502240106,-500.0,0.00013698,2]
[404746127,1770502240117,-500.0,0.00013698,2]
[404746128,1770502240128,-500.0,0.00013698,2]
[404746129,1770502240141,-589.15994815,0.00013698,2]
[404746130,1770502240151,-500.0,0.00013698,2]
[404746131,1770502240161,-500.0,0.00013698,2]
[404746132,1770502240172,-603.19668382,0.00013698,2]
[404746133,1770502240183,-500.0,0.00013698,2]
[404746134,1770502240194,-500.0,0.00013698,2]
[404746135,1770502240205,-620.13152007,0.00013698,2]
[404746136,1770502240217,-500.0,0.00013698,2]
[404746137,1770502240229,-500.0,0.00013698,2]
[404746138,1770502240240,-500.0,0.00013698,2]
[404746139,1770502240251,-500.0,0.00013698,2]
[404746140,1770502240262,-500.0,0.00013698,2]
[404746141,1770502240272,-500.0,0.00013698,2]
[404746142,1770502240283,-500.0,0.00013698,2]
[404746143,1770502240294,-500.0,0.00013698,2]
[404746144,1770502240305,-426.4,0.00013698,2]
[404746145,1770502240317,-500.0,0.00013698,2]
[404746146,1770502240328,-500.0,0.00013698,2]
[404746147,1770502240340,-500.0,0.00013698,2]
[404746148,1770502240352,-500.0,0.00013698,2]
[404746149,1770502240363,-500.0,0.00013698,2]
[404746150,1770502240376,-500.0,0.00013698,2]
[404746151,1770502240386,-500.0,0.00013698,2]
[404746152,1770502240397,-500.0,0.00013698,2]
[404746153,1770502240407,-500.0,0.00013698,2]
[404746154,1770502240418,-462.88,0.00013698,2]
[404746155,1770502240429,-500.0,0.00013698,2]
[404746156,1770502240440,-500.0,0.00013698,2]
[404746157,1770502240451,-500.0,0.00013698,2]
[404746158,1770502240462,-500.0,0.00013698,2]
[404746159,1770502240472,-500.0,0.00013698,2]
[404746160,1770502240483,-500.0,0.00013698,2]
[404746161,1770502240494,-500.0,0.00013698,2]
[404746162,1770502240505,-500.0,0.00013698,2]
[404746163,1770502240516,-500.0,0.00013698,2]
[404746164,1770502240527,-500.0,0.00013698,2]
[404746165,1770502240538,-500.0,0.00013698,2]
[404746166,1770502240549,-500.0,0.00013698,2]
[404746167,1770502240559,-500.0,0.00013698,2]
[404746168,1770502240570,-500.0,0.00013698,2]
[404746169,1770502240581,-500.0,0.00013698,2]
[404746170,1770502240592,-500.0,0.00013698,2]
[404746171,1770502240603,-500.0,0.00013698,2]
[404746172,1770502240613,-500.0,0.00013698,2]
[404746173,1770502240624,-500.0,0.00013698,2]
[404746174,1770502240635,-500.0,0.00013698,2]
[404746175,1770502240646,-500.0,0.00013698,2]
[404746176,1770502240656,-500.0,0.00013698,2]
[404746177,1770502240667,-500.0,0.00013698,2]
[404746178,1770502240678,-500.0,0.00013698,2]
[404746179,1770502240690,-500.0,0.00013698,2]
[404746180,1770502240701,-500.0,0.00013698,2]
[404746181,1770502240712,-500.0,0.00013698,2]
[404746182,1770502240722,-189.01047502,0.00013698,2]
[404746183,1770502240738,-500.0,0.00013698,2]
[404746184,1770502240750,-500.0,0.00013698,2]
[404746185,1770502240761,-500.0,0.00013698,2]
[404746186,1770502240772,-500.0,0.00013698,2]
[404746187,1770502240784,-500.0,0.00013698,2]
[404746188,1770502240795,-500.0,0.00013698,2]
[404746189,1770502240807,-500.0,0.00013698,2]
[404746190,1770502240818,-500.0,0.00013698,2]
[404746191,1770502240829,-500.0,0.00013698,2]
[404746192,1770502240839,-500.0,0.00013698,2]
[404746193,1770502240850,-375.68,0.00013698,2]
[404746194,1770502240861,-298.66,0.00013699,2]
[404746195,1770502240872,-150.99,0.00013699,2]
[404746196,1770502240883,-7595.24,0.00013699,2]
[404746197,1770502240893,-9999.99,0.00013699,2]
[404746198,1770502240903,-299.99,0.00013699,2]
[404746199,1770502240914,-150.99,0.00013699,2]
[404746200,1770502240925,-9999.99,0.00013699,2]
[404746201,1770502240935,-405.24,0.00013699,2]
[404746202,1770502240946,-255.0,0.00014003,2]
[404746203,1770502240957,-300.0,0.00014076,2]
[404746204,1770502240967,-300.0,0.00014076,2]
[404746205,1770502240978,-300.0,0.00014076,2]
[404746206,1770502240990,-600.0,0.00014076,2]
[404746207,1770502241001,-600.0,0.00014076,2]
[404746208,1770502241012,-600.0,0.00014076,2]
[404746209,1770502241022,-193.0,0.00014076,2]
[404746210,1770502241033,-513.95291761,0.00014117,2]
[404746211,1770502241044,-250.0,0.00014117,2]
[404746212,1770502241055,-300.0,0.00014117,2]
[404746213,1770502241065,-473.53,0.00014157,2]
[404746214,1770502241076,-920.0,0.00014183,2]
[404746215,1770502241086,-754.50246637,0.00014766,2]
[404746216,1770502241097,-155.26244674,0.000149,2]
[404746217,1770502241108,-155.26244673,0.000149,2]
[404746218,1770502241119,-155.26244673,0.000149,2]
[404746219,1770502241130,-3240.0,0.00015073,2]
[404746220,1770502241140,-500.0,0.00015373,2]
[404746221,1770502241151,-687.69562898,0.00015921,2]
[404746222,1770502241162,-473.53,0.00015927,2]
[404746223,1770502241173,-633.7453196,0.00016146,2]
[404746224,1770502241183,-2068.2728625,0.00016323,2]
[404746225,1770502241194,-2037.19802843,0.00016323,2]
[404746226,1770502241204,-250.0,0.00016908,2]
[404746227,1770502241215,-633.7453196,0.00017685,2]
[404746228,1770502241226,-473.53,0.00017697,2]
[404746229,1770502241237,-500.0,0.00017807,2]
[404746230,1770502241247,-160.0,0.00017921,2]
[404746231,1770502241258,-204.3298222,0.00018087,2]
[404746232,1770502241268,-200.0,0.00018319,2]
[404746233,1770502241279,-633.7453196,0.00019225,2]
[404746234,1770502241290,-133.01115925,0.00019466,2]
[404746248,1770502243463,-150.44801747,0.00016,2]
[404746250,1770502243473,-340.51884075,0.00019466,2]
[404746252,1770502243482,-21.72314528,0.00019749,2]
[404746256,1770502244393,-419.99999999,0.00019749,2]
[404746259,1770502245536,-350.625,0.00019749,2]
[404746264,1770502409410,500.0,0.00035616,30]
[404746265,1770502410007,500.0,0.00035616,30]
[404746266,1770502410628,500.0,0.00035616,30]
[404746267,1770502411214,500.0,0.00035616,30]
[404746268,1770502411810,521.5526136,0.00035616,30]
[404746269,1770502417435,151.0,0.00035616,30]
[404746270,1770502418033,151.0,0.00035616,30]
[404746271,1770502418633,151.0,0.00035616,30]
[404746272,1770502419245,151.0,0.00035616,30]
[404746273,1770502419859,151.0,0.00035616,30]
[404746274,1770502420470,151.0,0.00035616,30]
[404746275,1770502421070,151.0,0.00035616,30]
[404746276,1770502421688,151.0,0.00035616,30]
[404746277,1770502422277,151.0,0.00035616,30]
[404746278,1770502422892,151.0,0.00035616,30]
[404746279,1770502423518,151.0,0.00035616,30]
[404746280,1770502431687,500.0,0.00035616,30]
[404746281,1770502432290,500.0,0.00035616,30]
[404746282,1770502432915,500.0,0.00035616,30]
[404746283,1770502433514,500.0,0.00035616,30]
[404746284,1770502434117,500.0,0.00035616,30]
[404746285,1770502434727,500.0,0.00035616,30]
[404746286,1770502435316,500.0,0.00035616,30]
[404746287,1770502435982,500.0,0.00035616,30]
[404746288,1770502436591,500.0,0.00035616,30]
[404746289,1770502437184,500.0,0.00035616,30]
[404746290,1770502438017,500.0,0.00035616,30]
[404746291,1770502438397,500.0,0.00035616,30]
[404746292,1770502439000,500.0,0.00035616,30]
[404746293,1770502439593,500.0,0.00035616,30]
[404746294,1770502440200,500.0,0.00035616,30]
[404746295,1770502440822,500.0,0.00035616,30]
[404746296,1770502441420,182.49313646,0.00035616,30]
[404746297,1770502444494,500.0,0.00035616,30]
[404746298,1770502445119,500.0,0.00035616,30]
[404746299,1770502445745,500.0,0.00035616,30]
[404746300,1770502446384,500.0,0.00035616,30]
[404746301,1770502447009,500.0,0.00035616,30]
[404746302,1770502447617,500.0,0.00035616,30]
[404746303,1770502448253,500.0,0.00035616,30]
[404746304,1770502448832,500.0,0.00035616,30]
[404746305,1770502449461,500.0,0.00035616,30]
[404746306,1770502451797,3014.2,0.0001,2]
[404746307,1770502452235,500.0,0.00035616,30]
[404746308,1770502453193,500.0,0.00035616,30]
[404746309,1770502453790,500.0,0.00035616,30]
[404746310,1770502454405,500.0,0.00035616,30]
[404746311,1770502455008,298.45,0.00035616,30]
[404746312,1770502457579,658.83204685,0.00032849,30]
[404746313,1770502467415,200.0,0.00035616,30]
[404746314,1770502468012,200.0,0.00035616,30]
[404746315,1770502468834,200.0,0.00035616,30]
[404746316,1770502469204,200.0,0.00035616,30]
[404746317,1770502469797,200.0,0.00035616,30]
[404746318,1770502470400,200.0,0.00035616,30]
[404746319,1770502471015,200.0,0.00035616,30]
[404746320,1770502471627,210.8410705,0.00035616,30]
[404746321,1770502474664,200.0,0.00035616,30]
[404746322,1770502475782,200.0,0.00035616,30]
[404746323,1770502477697,200.0,0.00035616,30]
[404746324,1770502478281,200.0,0.00035616,30]
[404746325,1770502478914,200.0,0.00035616,30]
[404746326,1770502479534,200.0,0.00035616,30]
[404746327,1770502480129,200.0,0.00035616,30]
[404746328,1770502480740,200.0,0.00035616,30]
[404746329,1770502481345,200.0,0.00035616,30]
[404746330,1770502481977,200.0,0.00035616,30]
[404746331,1770502482586,200.0,0.00035616,30]
[404746332,1770502483179,200.0,0.00035616,30]
[404746333,1770502483807,200.0,0.00035616,30]
[404746334,1770502484405,202.52521576,0.00035616,30]
[404746335,1770502503607,500.0,0.00035616,30]
[404746336,1770502504415,500.0,0.00035616,30]
[404746337,1770502504978,500.0,0.00035616,30]
[404746338,1770502505663,500.0,0.00035616,30]
[404746340,1770502506332,500.0,0.00035616,30]
[404746341,1770502506984,500.0,0.00035616,30]
[404746342,1770502507620,500.0,0.00035616,30]
[404746343,1770502508262,500.0,0.00035616,30]
[404746344,1770502508897,500.0,0.00035616,30]
[404746345,1770502509500,500.0,0.00035616,30]
[404746346,1770502510109,500.0,0.00035616,30]
[404746347,1770502510737,500.0,0.00035616,30]
[404746348,1770502511367,500.0,0.00035616,30]
[404746349,1770502511997,500.0,0.00035616,30]
[404746350,1770502512630,500.0,0.00035616,30]
[404746354,1770502534020,151.0,0.00035616,30]
[404746355,1770502538835,156.587,0.00035616,30]
[404746356,1770502539472,162.380719,0.00035616,30]
[404746357,1770502540092,181.77597193,0.00035616,30]
[404746358,1770502543468,151.0,0.00035616,30]
[404746359,1770502543893,156.587,0.00035616,30]
[404746360,1770502544653,162.380719,0.00035616,30]
[404746361,1770502545401,168.3888056,0.00035616,30]
[404746362,1770502545898,174.61919141,0.00035616,30]
[404746363,1770502546509,181.08010149,0.00035616,30]
[404746364,1770502547154,187.78006525,0.00035616,30]
[404746365,1770502547767,194.72792766,0.00035616,30]
[404746366,1770502548387,201.93286099,0.00035616,30]
[404746367,1770502548987,209.40437684,0.00035616,30]
[404746368,1770502549613,217.15233878,0.00035616,30]
[404746369,1770502550226,225.18697532,0.00035616,30]
[404746370,1770502550828,233.51889341,0.00035616,30]
[404746371,1770502551458,242.15909246,0.00035616,30]
[404746372,1770502552172,251.11897888,0.00035616,30]
[404746373,1770502552782,260.4103811,0.00035616,30]
[404746374,1770502553411,270.0455652,0.00035616,30]
[404746375,1770502554025,280.03725112,0.00035616,30]
[404746376,1770502554671,290.39862941,0.00035616,30]
[404746377,1770502555289,301.1433787,0.00035616,30]
[404746378,1770502605468,1000.0,0.00035616,30]
[404746379,1770502606073,1000.0,0.00035616,30]
[404746380,1770502606893,1000.0,0.00035616,30]
[404746381,1770502607359,1000.0,0.00035616,30]
[404746382,1770502607994,1000.0,0.00035616,30]
[404746383,1770502608600,1000.0,0.00035616,30]
[404746384,1770502609185,1000.0,0.00035616,30]
[404746385,1770502609825,1000.0,0.00035616,30]
[404746386,1770502610486,1000.0,0.00035616,30]
[404746387,1770502611187,1000.0,0.00035616,30]
[404746388,1770502611800,1000.0,0.00035616,30]
[404746389,1770502614678,1000.0,0.00035616,30]
[404746390,1770502615757,1000.0,0.00035616,30]
[404746391,1770502616365,1000.0,0.00035616,30]
[404746392,1770502617239,1000.0,0.00035616,30]
[404746393,1770502617563,1000.0,0.00035616,30]
[404746394,1770502618182,1000.0,0.00035616,30]
[404746395,1770502620096,1000.0,0.00035616,30]
[404746396,1770502621011,1000.0,0.00035616,30]
[404746397,1770502621625,1000.0,0.00035616,30]
[404746401,1770502624051,200.0,0.00035616,30]
[404746402,1770502624662,200.0,0.00035616,30]
[404746403,1770502625271,200.0,0.00035616,30]
[404746404,1770502625896,213.00021975,0.00035616,30]
[404746405,1770502654585,151.0,0.00035616,30]
[404746406,1770502658096,156.587,0.00035616,30]
[404746407,1770502658621,162.380719,0.00035616,30]
[404746408,1770502659256,168.3888056,0.00035616,30]
[404746409,1770502660334,174.61919141,0.00035616,30]
[404746410,1770502660955,181.08010149,0.00035616,30]
[404746411,1770502661551,187.78006525,0.00035616,30]
[404746412,1770502662187,194.72792766,0.00035616,30]
[404746413,1770502662810,201.93286099,0.00035616,30]
[404746414,1770502663442,209.40437684,0.00035616,30]
[404746415,1770502664063,217.15233878,0.00035616,30]
[404746416,1770502664685,225.18697532,0.00035616,30]
[404746417,1770502665305,233.51889341,0.00035616,30]
[404746418,1770502665949,242.15909246,0.00035616,30]
[404746419,1770502666566,251.11897888,0.00035616,30]
[404746420,1770502667193,260.4103811,0.00035616,30]
[404746421,1770502667808,270.0455652,0.00035616,30]
[404746422,1770502668614,280.03725112,0.00035616,30]
[404746423,1770502669059,290.39862941,0.00035616,30]
[404746424,1770502669683,301.1433787,0.00035616,30]
[404746425,1770502683301,1000.0,0.00035616,30]
[404746426,1770502683952,1000.0,0.00035616,30]
[404746427,1770502684696,1000.0,0.00035616,30]
[404746428,1770502685336,1000.0,0.00035616,30]
[404746429,1770502685939,1000.0,0.00035616,30]
[404746430,1770502686544,500.0,0.00035616,30]
[404746431,1770502689601,620.0,0.00035616,30]
[404746432,1770502690217,248.92858835,0.00035616,30]
[404746433,1770502696744,1000.0,0.00035616,30]
[404746434,1770502705414,300.0,0.00035616,30]
[404746435,1770502706016,311.1,0.00035616,30]
[404746436,1770502706628,322.6107,0.00035616,30]
[404746437,1770502707237,334.5472959,0.00035616,30]
[404746438,1770502707867,346.92554585,0.00035616,30]
[404746439,1770502708488,359.76179104,0.00035616,30]
[404746440,1770502709118,373.07297731,0.00035616,30]
[404746441,1770502709774,386.87667747,0.00035616,30]
[404746442,1770502710337,401.19111454,0.00035616,30]
[404746443,1770502711264,416.03518578,0.00035616,30]
[404746444,1770502711874,431.42848765,0.00035616,30]
[404746445,1770502712640,447.3913417,0.00035616,30]
[404746446,1770502713099,463.94482134,0.00035616,30]
[404746447,1770502713808,447.53200235,0.00035616,30]
[404746448,1770502739611,160.0,0.00035616,30]
[404746449,1770502742229,5189.0,0.0003561,30]
[404746450,1770502756364,151.0,0.00035616,30]
[404746451,1770502756972,156.587,0.00035616,30]
[404746452,1770502757629,162.380719,0.00035616,30]
[404746453,1770502758223,181.77597193,0.00035616,30]
[404746454,1770502764065,500.0,0.00035616,30]
[404746455,1770502764696,500.0,0.00035616,30]
[404746456,1770502765302,500.0,0.00035616,30]
[404746457,1770502765913,500.0,0.00035616,30]
[404746458,1770502766526,248.97678456,0.00035616,30]
[404746459,1770502769718,520.0,0.00035616,30]
[404746460,1770502770330,539.24,0.00035616,30]
[404746461,1770502773171,559.19188,0.00035616,30]
[404746462,1770502774073,579.88197956,0.00035616,30]
[404746463,1770502774699,661.36155016,0.00035616,30]
[404746464,1770502804889,151.0,0.00035616,30]
[404746465,1770502805531,156.587,0.00035616,30]
[404746466,1770502806241,162.380719,0.00035616,30]
[404746467,1770502806898,168.3888056,0.00035616,30]
[404746468,1770502807514,174.61919141,0.00035616,30]
[404746469,1770502808126,181.08010149,0.00035616,30]
[404746470,1770502808918,187.78006525,0.00035616,30]
[404746471,1770502809580,194.72792766,0.00035616,30]
[404746472,1770502810224,201.93286099,0.00035616,30]
[404746473,1770502810811,209.40437684,0.00035616,30]
[404746474,1770502811515,217.15233878,0.00035616,30]
[404746475,1770502812111,225.18697532,0.00035616,30]
[404746476,1770502812695,233.51889341,0.00035616,30]
[404746477,1770502813305,242.15909246,0.00035616,30]
[404746478,1770502813911,251.11897888,0.00035616,30]
[404746479,1770502814802,181.16389127,0.00035616,30]
[404746483,1770502934973,151.0,0.00035616,30]
[404746484,1770502935632,156.587,0.00035616,30]
[404746485,1770502936733,162.380719,0.00035616,30]
[404746486,1770502937427,168.3888056,0.00035616,30]
[404746487,1770502938110,174.61919141,0.00035616,30]
[404746488,1770502938748,181.08010149,0.00035616,30]
[404746489,1770502939393,187.78006525,0.00035616,30]
[404746490,1770502940030,194.72792766,0.00035616,30]
[404746491,1770502940700,201.93286099,0.00035616,30]
[404746492,1770502941335,209.40437684,0.00035616,30]
[404746493,1770502941962,217.15233878,0.00035616,30]
[404746494,1770502942579,225.18697532,0.00035616,30]
[404746495,1770502943195,233.51889341,0.00035616,30]
[404746496,1770502944087,242.15909246,0.00035616,30]
[404746498,1770502944654,251.11897888,0.00035616,30]
[404746499,1770502945298,260.4103811,0.00035616,30]
[404746500,1770502945917,270.0455652,0.00035616,30]
[404746501,1770502946552,280.03725112,0.00035616,30]
[404746502,1770502947157,290.39862941,0.00035616,30]
[404746503,1770502947764,301.1433787,0.00035616,30]
[404746513,1770503235801,151.0,0.00035616,30]
[404746514,1770503236507,156.587,0.00035616,30]
[404746515,1770503237082,162.380719,0.00035616,30]
[404746516,1770503237703,168.3888056,0.00035616,30]
[404746517,1770503238525,174.61919141,0.00035616,30]
[404746518,1770503239178,181.08010149,0.00035616,30]
[404746519,1770503239901,187.78006525,0.00035616,30]
[404746520,1770503240559,194.72792766,0.00035616,30]
[404746521,1770503241185,201.93286099,0.00035616,30]
[404746522,1770503241821,209.40437684,0.00035616,30]
[404746523,1770503242478,217.15233878,0.00035616,30]
[404746524,1770503243160,225.18697532,0.00035616,30]
[404746525,1770503243799,233.51889341,0.00035616,30]
[404746526,1770503244460,242.15909246,0.00035616,30]
[404746527,1770503245084,251.11897888,0.00035616,30]
[404746528,1770503245696,260.4103811,0.00035616,30]
[404746529,1770503246328,270.0455652,0.00035616,30]
[404746530,1770503246987,280.03725112,0.00035616,30]
[404746531,1770503247624,290.39862941,0.00035616,30]
[404746532,1770503248328,301.1433787,0.00035616,30]
[404746533,1770503263911,165.0,0.00034521,30]
[404746535,1770503289686,552.43,0.00035259,30]
[404746547,1770503431662,-4499.86,0.00011519,2]
[404746549,1770503431671,-215.92869762,0.00011527,2]
[404746550,1770503431681,-1200.0,0.00011535,2]
[404746551,1770503431690,-300.0,0.00011535,2]
[404746552,1770503431700,-300.0,0.00011535,2]
[404746553,1770503431710,-490.32743715,0.00011536,2]
[404746554,1770503431731,-645.79236201,0.00011536,2]
[404746555,1770503431794,-391.88,0.00011536,2]
[404746556,1770503431853,-15673.02020084,0.00011536,2]
[404746557,1770503431862,-1000.0,0.00011543,2]
[404746558,1770503431872,-136.25199444,0.00012013,2]
[404746574,1770503437800,-1674.39119093,0.00012013,2]
[404746575,1770503437860,-1183.97152561,0.00012013,2]
[404746577,1770503439789,-421.11578465,0.00012013,2]
[404746578,1770503439800,-796.04788305,0.00012013,2]
[404746579,1770503439913,-621.34162132,0.00012013,2]
[404746580,1770503439924,-5630.34,0.0001226,2]
[404746581,1770503439934,-5630.34,0.00012283,2]
[404746582,1770503439944,-5630.34,0.00012305,2]
[404746583,1770503439954,-5630.34,0.00012328,2]
[404746584,1770503439964,-184.246,0.00012343,2]
[404746585,1770503439974,-1123.852,0.00012343,2]
[404746586,1770503439983,-150.0,0.00012349,2]
[404746587,1770503439994,-5630.34,0.0001235,2]
[404746588,1770503440004,-5630.34,0.00012373,2]
[404746589,1770503440013,-5630.34,0.00012396,2]
[404746590,1770503440023,-5630.34,0.00012418,2]
[404746591,1770503440032,-5630.34,0.00012441,2]
[404746592,1770503440042,-5630.34,0.00012463,2]
[404746593,1770503440051,-5630.34,0.00012486,2]
[404746594,1770503440061,-500.0,0.00012495,2]
[404746595,1770503440070,-500.0,0.00012495,2]
[404746596,1770503440080,-500.0,0.00012495,2]
[404746597,1770503440090,-500.0,0.00012495,2]
[404746598,1770503440099,-500.0,0.00012495,2]
[404746599,1770503440109,-1989.03804801,0.00012495,2]
[404746600,1770503440119,-5630.34,0.00012508,2]
[404746601,1770503440128,-500.0,0.0001253,2]
[404746602,1770503440139,-500.0,0.0001253,2]
[404746603,1770503440148,-500.0,0.0001253,2]
[404746604,1770503440158,-250.27721832,0.0001253,2]
[404746605,1770503440171,-500.0,0.0001253,2]
[404746606,1770503440180,-500.0,0.0001253,2]
[404746607,1770503440189,-500.0,0.0001253,2]
[404746608,1770503440199,-500.0,0.0001253,2]
[404746609,1770503440209,-500.0,0.0001253,2]
[404746610,1770503440219,-500.0,0.0001253,2]
[404746611,1770503440228,-500.0,0.0001253,2]
[404746612,1770503440240,-500.0,0.0001253,2]
[404746613,1770503440249,-500.0,0.0001253,2]
[404746614,1770503440259,-500.0,0.0001253,2]
[404746615,1770503440268,-500.0,0.0001253,2]
[404746616,1770503440277,-500.0,0.0001253,2]
[404746617,1770503440287,-500.0,0.0001253,2]
[404746618,1770503440296,-523.51629035,0.0001253,2]
[404746619,1770503440305,-500.0,0.0001253,2]
[404746620,1770503440315,-500.0,0.0001253,2]
[404746621,1770503440324,-500.0,0.0001253,2]
[404746622,1770503440333,-500.0,0.0001253,2]
[404746623,1770503440343,-5630.34,0.00012531,2]
[404746624,1770503440352,-7238.0686926,0.00012537,2]
[404746625,1770503440372,-6913.50557726,0.00012537,2]
[404746626,1770503440383,-498.56809228,0.00012537,2]
[404746627,1770503440407,-4674.52316993,0.00012537,2]
[404746635,1770503443608,-1137.79536712,0.00012537,2]
[404746636,1770503444504,-521.20920726,0.00012537,2]
[404746637,1770503445674,-3548.68314574,0.00012537,2]
[404746638,1770503445685,-5313.32674781,0.00012537,2]
[404746639,1770503445695,-255.67325169,0.00012537,2]
[404746640,1770503445725,-927.34473525,0.00012537,2]
[404746641,1770503445738,-291.80031932,0.00012537,2]
[404746642,1770503445751,-377.60169374,0.00012537,2]
[404746643,1770503445762,-145.89417211,0.00012554,2]
[404746644,1770503445775,-416.30793719,0.00012554,2]
[404746645,1770503445791,-5068.1378907,0.00012554,2]
[404746646,1770503445800,-5630.34,0.00012576,2]
[404746647,1770503445810,-488.43,0.00012594,2]
[404746648,1770503445819,-2500.0,0.00012595,2]
[404746649,1770503445828,-327.95288472,0.00012595,2]
[404746650,1770503445838,-1307.20620799,0.00012599,2]
[404746651,1770503445905,-3165.45,0.00012599,2]
[404746654,1770503460602,500.0,0.00032171,30]
[404746663,1770503496041,151.0,0.0003526,31]
[404746664,1770503497442,151.0,0.0003526,31]
[404746665,1770503501239,245.683354,0.0003526,31]
[404746666,1770503502963,245.683354,0.0003526,31]
[404746667,1770503504417,245.683354,0.0003526,31]
[404746668,1770503505888,245.683354,0.0003526,31]
[404746669,1770503508009,500.0,0.00027609,30]
[404746670,1770503540726,151.0,0.00035616,30]
[404746671,1770503541361,156.587,0.00035616,30]
[404746672,1770503542005,162.380719,0.00035616,30]
[404746673,1770503542624,168.3888056,0.00035616,30]
[404746674,1770503543293,174.61919141,0.00035616,30]
[404746675,1770503543901,181.08010149,0.00035616,30]
[404746676,1770503544724,187.78006525,0.00035616,30]
[404746677,1770503545345,194.72792766,0.00035616,30]
[404746678,1770503545957,201.93286099,0.00035616,30]
[404746679,1770503546587,209.40437684,0.00035616,30]
[404746680,1770503547207,217.15233878,0.00035616,30]
[404746681,1770503547832,225.18697532,0.00035616,30]
[404746682,1770503548454,233.51889341,0.00035616,30]
[404746683,1770503548803,151.0,0.0003526,31]
[404746684,1770503549078,242.15909246,0.00035616,30]
[404746685,1770503549485,151.0,0.0003526,31]
[404746686,1770503549692,251.11897888,0.00035616,30]
[404746687,1770503550343,260.4103811,0.00035616,30]
[404746688,1770503550951,270.0455652,0.00035616,30]
[404746689,1770503551038,151.0,0.0003526,31]
[404746690,1770503551556,280.03725112,0.00035616,30]
[404746691,1770503552193,290.39862941,0.00035616,30]
[404746692,1770503552529,151.0,0.0003526,31]
[404746693,1770503552804,301.1433787,0.00035616,30]
[404746694,1770503553337,151.0,0.0003526,31]
[404746696,1770503587495,151.0,0.00035616,31]
[404746697,1770503603781,151.0,0.0003526,31]
[404746698,1770503611223,151.0,0.0003526,30]
[404746699,1770503613086,151.0,0.0003526,30]
[404746700,1770503617635,1092.536134,0.0003526,31]
[404746701,1770503619339,1092.536134,0.0003526,31]
[404746702,1770503620580,1092.536134,0.0003526,31]
[404746703,1770503623232,1092.536134,0.0003526,31]
[404746704,1770503630505,151.0,0.0003526,31]
[404746707,1770503649870,151.0,0.0003526,31]
[404746708,1770503649932,151.0,0.0003526,31]
[404746709,1770503651171,379.650577,0.0003526,31]
[404746710,1770503651237,151.0,0.0003526,31]
[404746711,1770503652678,151.0,0.0003526,31]
[404746712,1770503652852,379.650577,0.0003526,31]
[404746713,1770503654321,379.650577,0.0003526,31]
[404746714,1770503655760,379.650577,0.0003526,31]
[404746715,1770503668298,151.0,0.0003526,31]
[404746716,1770503669797,151.0,0.0003526,31]
[404746717,1770503693086,151.0,0.0003526,31]